lending/lending_fUSD_20250501
["ID","MTS","AMOUNT","RATE_DAILY","PERIOD"]
[359488605,1746057703356,15000.0,0.00045855,31]
[359488606,1746057738403,5854.0,0.00045855,31]
[359488607,1746057871142,176.67,0.00019234,2]
[359488608,1746057889517,1824.52422001,0.00019231,2]
[359488609,1746057889543,2000.0,0.00019231,2]
[359488610,1746057889565,2000.0,0.00019231,2]
[359488611,1746057889598,2000.0,0.00019231,2]
[359488612,1746057889622,2000.0,0.00019231,2]
[359488613,1746057889644,2000.0,0.00019231,2]
[359488614,1746057889666,2000.0,0.00019231,2]
[359488615,1746057889688,2000.0,0.00019231,2]
[359488616,1746057889710,585.06577999,0.00019231,2]
[359488617,1746057973854,-350.58930852,0.00019359,2]
[359488618,1746057981284,241.011312,0.00019261,2]
[359488621,1746058028658,952.09,0.00019243,2]
[359488625,1746058043781,462.84422001,0.00017337,2]
[359488626,1746058043809,247.37577999,0.00017337,2]
[359488637,1746058224817,23900.0,0.00019145,2]
[359488639,1746058232016,-1147.30069148,0.00019359,2]
[359488640,1746058232026,-250.0,0.00019361,2]
[359488641,1746058232035,-200.0,0.00019364,2]
[359488642,1746058232045,-200.0,0.0001938,2]
[359488643,1746058232054,-409.30137379,0.00019601,2]
[359488644,1746058232091,-300.91862621,0.00019601,2]
[359488645,1746058232101,-21087.68822155,0.000197,2]
[359488646,1746058232111,-472.93938573,0.00019742,2]
[359488647,1746058232122,-20792.12366228,0.000198,2]
[359488648,1746058232134,-11661.16939634,0.000198,2]
[359488649,1746058232144,-3929.0662,0.000198,2]
[359488650,1746058232155,-3217.35658056,0.0001981,2]
[359488651,1746058232165,-596.6322013,0.0001981,2]
[359488652,1746058232174,-166.66,0.00019866,2]
[359488653,1746058232186,-7681.2748,0.00019886,2]
[359488654,1746058232196,-33177.98731133,0.00019886,2]
[359488655,1746058232223,-9294.94978867,0.00019886,2]
[359488656,1746058232232,-1598.7898,0.00019886,2]
[359488657,1746058232241,-16235.21555459,0.000199,2]
[359488658,1746058232258,-831.86817466,0.000199,2]
[359488659,1746058232269,-939.82057194,0.000199,2]
[359488863,1746058238069,-73996.50299881,0.000199,2]
[359488864,1746058238078,-155.15136,0.000199,2]
[359488865,1746058238089,-218.4535692,0.0001991,2]
[359488866,1746058238098,-250.0,0.00019941,2]
[359488867,1746058238108,-507.24324575,0.00019973,2]
[359488868,1746058238117,-402.41000989,0.00019973,2]
[359488869,1746058238127,-500.0,0.00019973,2]
[359488870,1746058238137,-500.0,0.00019973,2]
[359488871,1746058238146,-313.40783682,0.00019973,2]
[359488872,1746058238156,-500.0,0.00019973,2]
[359488873,1746058238165,-500.0,0.00019973,2]
[359488874,1746058238175,-500.0,0.00019973,2]
[359488875,1746058238185,-500.0,0.00019973,2]
[359488876,1746058238194,-500.93538089,0.00019973,2]
[359488877,1746058238204,-500.0,0.00019985,2]
[359488879,1746058238389,-500.0,0.00019985,2]
[359488881,1746058238400,-198.9108306,0.00019985,2]
[359488883,1746058238410,-500.0,0.00019985,2]
[359488885,1746058238419,-500.0,0.00019985,2]
[359488886,1746058238428,-500.0,0.00019985,2]
[359488888,1746058238439,-500.0,0.00019985,2]
[359488890,1746058238449,-161171.3088604,0.00019986,2]
[359488892,1746058238459,-5353.1178506,0.00019986,2]
[359488894,1746058238468,-12810.9049414,0.00019986,2]
[359488896,1746058238477,-20566.05358364,0.0001999,2]
[359488898,1746058238487,-150.99678834,0.0001999,2]
[359488900,1746058238496,-914586.86692598,0.0002,2]
[359488907,1746058238550,-1995.8845602,0.0002,2]
[359488910,1746058238562,-424.88308538,0.0002,2]
[359488913,1746058238584,-666.24,0.0002,2]
[359488915,1746058238595,-3742.70217563,0.0002,2]
[359488917,1746058238606,-5156.462,0.0002,2]
[359488919,1746058238617,-329.807,0.0002,2]
[359488922,1746058238629,-438.87999797,0.0002,2]
[359488924,1746058238640,-1517.50982453,0.0002,2]
[359488928,1746058238672,-280.407,0.0002,2]
[359489105,1746058240520,-2419.78327386,0.0002,2]
[359489107,1746058240531,-80165.72123168,0.0002,2]
[359489109,1746058240542,-5096.89489142,0.0002,2]
[359489111,1746058240552,-513.6550567,0.0002,2]
[359489113,1746058240563,-9486.3449433,0.0002,2]
[359489115,1746058240573,-8801.56619596,0.0002001,2]
[359489117,1746058240583,-4958.51471998,0.0002001,2]
[359489119,1746058240594,-1000.0,0.00020095,2]
[359489121,1746058240603,-163.26,0.00020102,2]
[359489123,1746058240613,-200.0,0.00020102,2]
[359489125,1746058240623,-1673.5284891,0.0002015,2]
[359489127,1746058240632,-500.0,0.00020192,2]
[359489129,1746058240642,-203.77,0.00020234,2]
[359489131,1746058240651,-163.15,0.00020245,2]
[359489133,1746058240660,-500.0,0.00020384,2]
[359489135,1746058240670,-500.0,0.00020411,2]
[359489137,1746058240679,-166.66,0.00020521,2]
[359489139,1746058240689,-300.0,0.00020685,2]
[359489141,1746058240699,-5941.4676668,0.000207,2]
[359489143,1746058240709,-1138.0,0.0002071,2]
[359489145,1746058240720,-239.056,0.00020723,2]
[359489147,1746058240730,-263.24,0.00020723,2]
[359489149,1746058240741,-875.0,0.00020723,2]
[359489151,1746058240750,-6746.0,0.00020723,2]
[359489153,1746058240759,-4001.0,0.00020723,2]
[359489155,1746058240769,-878.0,0.00020723,2]
[359489157,1746058240778,-7989.86,0.00020822,2]
[359489159,1746058240787,-5170.7012066,0.000209,3]
[359489161,1746058240796,-16329.34064842,0.00020918,2]
[359489163,1746058240808,-328.47396994,0.00020918,2]
[359489167,1746058240835,-13342.18538164,0.00020918,2]
[359489169,1746058240845,-150.0,0.00020979,2]
[359489171,1746058240854,-249.813,0.00020979,2]
[359489173,1746058240864,-189.327,0.00020979,2]
[359489175,1746058240874,-179.223,0.00020979,2]
[359489177,1746058240883,-258.253,0.00020979,2]
[359489179,1746058240892,-155.315,0.00020979,2]
[359489181,1746058240902,-245.67,0.00020979,2]
[359489183,1746058240911,-253.434,0.00020979,2]
[359489184,1746058240920,-182.554,0.00020979,2]
[359489186,1746058240929,-259.392,0.00020979,2]
[359489188,1746058240938,-202.809,0.00020979,2]
[359489190,1746058240948,-154.065,0.00020979,2]
[359489192,1746058240957,-1006.459,0.00020979,2]
[359489194,1746058240967,-1339.0,0.00020979,2]
[359489196,1746058240976,-1289.0,0.00020979,2]
[359489198,1746058240987,-797.0,0.00020979,2]
[359489200,1746058240996,-582.625,0.00020979,2]
[359489202,1746058241004,-1033.602,0.00020979,2]
[359489203,1746058241014,-1463.905,0.00020979,2]
[359489205,1746058241023,-618.48,0.00020979,2]
[359489207,1746058241032,-2068.0,0.00020979,2]
[359489210,1746058241042,-20000.0,0.00021,2]
[359489230,1746058241229,-350.0,0.00021,2]
[359489232,1746058241239,-641.0,0.00021048,2]
[359489234,1746058241248,-166.66,0.00021177,2]
[359489236,1746058241258,-937.78,0.000212,2]
[359489237,1746058241267,-151.0,0.00021273,2]
[359489239,1746058241277,-200.0,0.00021294,2]
[359489241,1746058241286,-200.0,0.00021294,2]
[359489244,1746058241296,-250.0,0.00021294,2]
[359489245,1746058241305,-3217.35658047,0.00021555,2]
[359489247,1746058241315,-1000.0,0.00021644,2]
[359489249,1746058241324,-7314.26836107,0.000217,2]
[359489251,1746058241334,-434.64,0.00021757,2]
[359489253,1746058241343,-499.99,0.00021757,2]
[359489255,1746058241353,-173.4,0.00021757,2]
[359489257,1746058241366,-1010.04,0.00021757,2]
[359489259,1746058241375,-150.99,0.00021757,2]
[359489261,1746058241384,-1537.68,0.00021757,2]
[359489263,1746058241395,-999.99,0.00021757,2]
[359489266,1746058241406,-1035.66,0.00021757,2]
[359489267,1746058241414,-1128.97,0.00021757,2]
[359489269,1746058241424,-693.52,0.00021757,2]
[359489271,1746058241433,-150.99,0.00021757,2]
[359489273,1746058241445,-9999.99,0.00021757,2]
[359489275,1746058241454,-2844.81,0.00021757,2]
[359489277,1746058241463,-1152.68,0.00021757,5]
[359489279,1746058241473,-9999.99,0.00021757,2]
[359489281,1746058241483,-5170.70120651,0.00021762,3]
[359489283,1746058241492,-1110.466,0.00021778,2]
[359489285,1746058241501,-193.382,0.00021778,2]
[359489287,1746058241511,-5053.54823058,0.000218,2]
[359489289,1746058241520,-166.66,0.00021833,2]
[359489291,1746058241530,-710.22,0.00021865,2]
[359489293,1746058241539,-157.06,0.00021917,2]
[359489296,1746058241549,-513.80931495,0.00021918,2]
[359489298,1746058241558,-500.0,0.00021973,2]
[359489300,1746058241567,-305.27,0.00022,2]
[359489302,1746058241577,-302.0,0.00022,2]
[359489304,1746058241586,-151.0,0.00022,2]
[359489306,1746058241596,-301.5,0.00022,2]
[359489308,1746058241605,-300.0,0.00022054,2]
[359489310,1746058241614,-163.26,0.00022112,2]
[359489312,1746058241623,-166.66,0.00022489,2]
[359489314,1746058241632,-34262.70999449,0.000225,2]
[359489316,1746058241641,-1000.0,0.00022607,2]
[359489318,1746058241650,-5170.70120651,0.00022624,4]
[359489320,1746058241659,-505.3753181,0.0002271,2]
[359489322,1746058241668,-1503.18221885,0.00023,2]
[359489324,1746058241677,-400.0,0.00023,2]
[359489326,1746058241687,-300.45,0.00023038,2]
[359489328,1746058241696,-301.55,0.0002312,2]
[359489330,1746058241705,-166.66,0.00023144,2]
[359489332,1746058241716,-33098.75819492,0.000232,2]
[359489334,1746058241726,-218.45356917,0.00023242,2]
[359489336,1746058241735,-157.06,0.00023287,2]
[359489338,1746058241744,-3217.35658047,0.000233,2]
[359489340,1746058241754,-5170.70120651,0.00023486,4]
[359489342,1746058241763,-200.0,0.000235,2]
[359489344,1746058241772,-1138.0,0.0002371,2]
[359489346,1746058241781,-153.0,0.00023723,2]
[359489348,1746058241791,-875.0,0.00023723,2]
[359489350,1746058241800,-6746.0,0.00023723,2]
[359489352,1746058241809,-4001.0,0.00023723,2]
[359489354,1746058241819,-878.0,0.00023723,2]
[359489356,1746058241828,-995.14,0.00023836,2]
[359489358,1746058241837,-368.6835237,0.00023853,2]
[359489360,1746058241847,-2000.0,0.00023901,2]
[359489362,1746058241856,-200.0,0.00023901,2]
[359489364,1746058241866,-501.68025213,0.0002397,2]
[359489366,1746058241875,-1654.14512105,0.0002397,2]
[359489368,1746058241884,-150.0,0.00023979,2]
[359489370,1746058241894,-150.0,0.00023979,2]
[359489372,1746058241903,-150.0,0.00023979,2]
[359489374,1746058241912,-922.0,0.00023979,2]
[359489376,1746058241922,-1214.901,0.00023979,2]
[359489378,1746058241931,-1289.0,0.00023979,2]
[359489380,1746058241941,-797.0,0.00023979,2]
[359489382,1746058241950,-580.0,0.00023979,2]
[359489384,1746058241960,-913.0,0.00023979,2]
[359489386,1746058241969,-1449.0,0.00023979,2]
[359489388,1746058241979,-549.0,0.00023979,2]
[359489390,1746058241989,-2068.0,0.00023979,2]
[359489392,1746058241998,-37513.31911571,0.00024,2]
[359489394,1746058242007,-1682.34656722,0.00024,14]
[359489443,1746058243486,-507.35756679,0.00024,14]
[359489444,1746058243496,-311.9025056,0.00024,14]
[359489445,1746058243508,-1309.97577165,0.00024,14]
[359489457,1746058246407,-842.1,0.00019886,2]
[359489490,1746058344550,250.0,0.00017,2]
[359489491,1746058345887,300.0,0.00019,2]
[359489492,1746058360957,6957.24325085,0.00045865,120]
[359489496,1746058793831,5000.0,0.00045851,50]
[359489497,1746059010105,199.0,0.00045852,31]
[359489499,1746059087304,200.0,0.00045852,31]
[359489501,1746059118475,200.0,0.00045852,31]
[359489502,1746059129232,200.0,0.00045852,31]
[359489504,1746059171650,164.0,0.00030137,120]
[359489505,1746059185657,200.0,0.00045852,31]
[359489506,1746059218844,200.86,0.00045852,31]
[359489507,1746059225877,200.0,0.00045852,31]
[359489518,1746059248390,598.02,0.00045852,120]
[359489532,1746059401118,200.0,0.00045852,120]
[359489540,1746059432169,-250.0,0.00019676,2]
[359489541,1746059432181,-50.0,0.00019884,2]
[359489542,1746059432220,-1150.0,0.00019884,2]
[359489543,1746059432231,-4466.23111768,0.00019885,2]
[359489544,1746059432245,-1336.31236293,0.00019885,2]
[359489545,1746059432279,-3445.25632716,0.00019885,2]
[359489546,1746059432289,-200.0,0.00019886,2]
[359489547,1746059432300,-5063.34700197,0.00019886,2]
[359489548,1746059432338,-251.04828034,0.00019886,2]
[359489580,1746059434075,200.0,0.00045852,120]
[359489583,1746059438067,-424.538785,0.00019886,2]
[359489584,1746059438115,-85422.37323269,0.00019886,2]
[359489585,1746059438126,-639.2,0.0001989,2]
[359489586,1746059438136,-190.87378664,0.000199,2]
[359489587,1746059438147,-1671.7111879,0.000199,2]
[359489588,1746059438157,-500.0,0.00019973,2]
[359489589,1746059438166,-648.03358886,0.00019973,2]
[359489590,1746059438175,-393.37197229,0.00019973,2]
[359489591,1746059438184,-500.0,0.00019973,2]
[359489592,1746059438194,-20566.05358364,0.0001999,2]
[359489593,1746059438203,-150.99678834,0.0001999,2]
[359489594,1746059438213,-150.99678834,0.0001999,2]
[359489595,1746059438223,-500.0,0.00019999,2]
[359489596,1746059438232,-500.0,0.00019999,2]
[359489597,1746059438243,-500.0,0.00019999,2]
[359489598,1746059438253,-500.0,0.00019999,2]
[359489599,1746059438263,-500.0,0.00019999,2]
[359489600,1746059438273,-239.23758142,0.00019999,2]
[359489601,1746059438283,-4234383.09266426,0.0002,2]
[359489602,1746059438308,-567.82266483,0.0002,2]
[359489603,1746059438320,-1486.05511616,0.0002,2]
[359489604,1746059438332,-1629.83238255,0.0002,2]
[359489605,1746059438359,-3641.97063338,0.0002,2]
[359489677,1746059440447,-162.50473659,0.000199,2]
[359489678,1746059440457,-16524.76330272,0.0002,2]
[359489679,1746059440468,-248796.04156241,0.0002,2]
[359489680,1746059440808,-4775.81373393,0.0002,2]
[359489681,1746059440823,-4365.33479156,0.0002,2]
[359489682,1746059440835,-6874.55901428,0.0002,2]
[359489921,1746059443475,-800.0,0.0002,2]
[359489926,1746059443517,-44800.97998397,0.0002,2]
[359489928,1746059443529,-3040.69466733,0.0002,2]
[359489936,1746059443596,-2307.80765407,0.0002,2]
[359489938,1746059443610,-999.6752,0.0002,2]
[359490146,1746059446162,-289.13065898,0.0002,2]
[359490147,1746059446307,-1765.99900002,0.0002,2]
[359490148,1746059446471,-11074.3880548,0.0002,2]
[359490434,1746059488611,154.8,0.00032877,60]
[359490435,1746059658846,500.0,0.00045893,120]
[359490436,1746059659076,500.0,0.00045893,120]
[359490437,1746059659371,500.0,0.00045893,120]
[359490438,1746059659624,500.0,0.00045893,120]
[359490439,1746059660038,500.0,0.00045893,120]
[359490440,1746059660129,500.0,0.00045893,120]
[359490441,1746059660362,500.0,0.00045893,120]
[359490442,1746059660606,500.0,0.00045893,120]
[359490443,1746059660857,500.0,0.00045893,120]
[359490444,1746059661089,500.0,0.00045893,120]
[359490446,1746059685632,500.0,0.00045893,120]
[359490447,1746059685925,500.0,0.00045893,120]
[359490448,1746059686170,500.0,0.00045893,120]
[359490449,1746059686475,500.0,0.00045893,120]
[359490450,1746059686675,500.0,0.00045893,120]
[359490451,1746059687324,500.0,0.00045893,120]
[359490452,1746059687392,500.0,0.00045893,120]
[359490453,1746059687454,500.0,0.00045893,120]
[359490454,1746059687683,500.0,0.00045893,120]
[359490455,1746059687965,500.0,0.00045893,120]
[359490456,1746059693988,3000.0,0.00045893,40]
[359490458,1746059886203,500.0,0.00045892,120]
[359490459,1746059892447,200.0,0.00045892,120]
[359490460,1746059912412,200.0,0.00045892,120]
[359490461,1746059925562,158.0,0.00045892,31]
[359490462,1746059937370,158.0,0.00045892,31]
[359490466,1746060099851,24180.78,0.00045892,31]
[359490467,1746060131304,450.0,0.00045892,31]
[359490468,1746060131341,607.62,0.00045892,31]
[359490469,1746060131549,450.0,0.00045892,31]
[359490470,1746060131581,607.62,0.00045892,31]
[359490471,1746060131793,450.0,0.00045892,31]
[359490472,1746060131826,607.62,0.00045892,31]
[359490473,1746060132024,450.0,0.00045892,31]
[359490474,1746060132079,607.62,0.00045892,31]
[359490475,1746060132110,543.81693418,0.00045892,31]
[359490476,1746060132285,450.0,0.00045892,31]
[359490477,1746060132316,607.62,0.00045892,31]
[359490478,1746060132386,450.0,0.00045892,31]
[359490479,1746060132537,450.0,0.00045892,31]
[359490480,1746060132567,607.62,0.00045892,31]
[359490481,1746060132618,450.0,0.00045892,31]
[359490482,1746060132775,450.0,0.00045892,31]
[359490483,1746060133074,450.0,0.00045892,31]
[359490484,1746060133107,450.0,0.00045892,31]
[359490485,1746060133135,607.62,0.00045892,31]
[359490486,1746060133184,450.0,0.00045892,31]
[359490487,1746060133213,450.0,0.00045892,31]
[359490488,1746060133256,450.0,0.00045892,31]
[359490489,1746060133289,607.62,0.00045892,31]
[359490490,1746060133321,450.0,0.00045892,31]
[359490491,1746060133356,450.0,0.00045892,31]
[359490492,1746060133453,607.62,0.00045892,31]
[359490493,1746060133496,450.0,0.00045892,31]
[359490494,1746060133564,450.0,0.00045892,31]
[359490495,1746060133593,450.0,0.00045892,31]
[359490496,1746060133623,607.62,0.00045892,31]
[359490497,1746060133722,567.22016963,0.00045892,31]
[359490498,1746060133760,450.0,0.00045892,31]
[359490499,1746060133791,450.0,0.00045892,31]
[359490500,1746060133885,607.62,0.00045892,31]
[359490501,1746060133994,450.0,0.00045892,31]
[359490502,1746060134035,450.0,0.00045892,31]
[359490503,1746060134066,450.0,0.00045892,31]
[359490504,1746060134164,607.62,0.00045892,31]
[359490505,1746060134291,450.0,0.00045892,31]
[359490506,1746060134320,450.0,0.00045892,31]
[359490507,1746060134364,1152.95,0.00045892,31]
[359490508,1746060134415,607.62,0.00045892,31]
[359490509,1746060134444,442.99930387,0.00045892,31]
[359490510,1746060134524,450.0,0.00045892,31]
[359490511,1746060134618,1152.95,0.00045892,31]
[359490512,1746060134726,607.62,0.00045892,31]
[359490513,1746060134767,450.0,0.00045892,31]
[359490514,1746060134864,1152.95,0.00045892,31]
[359490515,1746060134896,450.0,0.00045892,31]
[359490516,1746060134954,607.62,0.00045892,31]
[359490517,1746060135056,450.0,0.00045892,31]
[359490518,1746060135104,1152.95,0.00045892,31]
[359490519,1746060135136,450.0,0.00045892,31]
[359490520,1746060135226,607.62,0.00045892,31]
[359490521,1746060135316,450.0,0.00045892,31]
[359490522,1746060135352,1152.95,0.00045892,31]
[359490523,1746060135391,450.0,0.00045892,31]
[359490524,1746060135491,607.62,0.00045892,31]
[359490525,1746060135597,391.67383907,0.00045892,31]
[359490526,1746060135625,1152.95,0.00045892,31]
[359490527,1746060135653,302.04364414,0.00045892,31]
[359490528,1746060135693,450.0,0.00045892,31]
[359490529,1746060135730,607.62,0.00045892,31]
[359490530,1746060135883,1152.95,0.00045892,31]
[359490531,1746060135921,450.0,0.00045892,31]
[359490532,1746060135966,607.62,0.00045892,31]
[359490533,1746060136077,450.0,0.00045892,31]
[359490534,1746060136118,1152.95,0.00045892,31]
[359490535,1746060136156,450.0,0.00045892,31]
[359490536,1746060136219,607.62,0.00045892,31]
[359490537,1746060136305,450.0,0.00045892,31]
[359490538,1746060136529,1152.95,0.00045892,31]
[359490539,1746060136566,450.0,0.00045892,31]
[359490540,1746060136602,607.62,0.00045892,31]
[359490541,1746060136638,450.0,0.00045892,31]
[359490542,1746060136771,1152.95,0.00045892,31]
[359490543,1746060136800,450.0,0.00045892,31]
[359490544,1746060136833,607.62,0.00045892,31]
[359490545,1746060136873,450.0,0.00045892,31]
[359490546,1746060136910,1152.95,0.00045892,31]
[359490547,1746060136942,450.0,0.00045892,31]
[359490548,1746060136988,607.62,0.00045892,31]
[359490549,1746060137042,450.0,0.00045892,31]
[359490550,1746060137086,537.88,0.00045892,31]
[359490551,1746060137132,1152.95,0.00045892,31]
[359490552,1746060137167,450.0,0.00045892,31]
[359490553,1746060137213,607.85196096,0.00045892,31]
[359490554,1746060137257,170.04788747,0.00045892,31]
[359490555,1746060137287,537.88,0.00045892,31]
[359490556,1746060137317,1152.95,0.00045892,31]
[359490557,1746060137357,450.0,0.00045892,31]
[359490558,1746060137543,450.0,0.00045892,31]
[359490559,1746060137577,1152.95,0.00045892,31]
[359490560,1746060137610,450.0,0.00045892,31]
[359490561,1746060137683,592.85257044,0.00045892,31]
[359490562,1746060137777,450.0,0.00045892,31]
[359490563,1746060137809,1152.95,0.00045892,31]
[359490564,1746060137840,537.88,0.00045892,31]
[359490565,1746060137872,450.0,0.00045892,31]
[359490566,1746060138030,1152.95,0.00045892,31]
[359490567,1746060138061,307.05705975,0.00045892,31]
[359490568,1746060138091,450.0,0.00045892,31]
[359490569,1746060138125,537.88,0.00045892,31]
[359490570,1746060138262,1152.95,0.00045892,31]
[359490571,1746060138292,537.88,0.00045892,31]
[359490572,1746060138323,450.0,0.00045892,31]
[359490573,1746060138495,1152.95,0.00045892,31]
[359490574,1746060138530,537.88,0.00045892,31]
[359490575,1746060138731,1152.95,0.00045892,31]
[359490576,1746060138761,537.88,0.00045892,31]
[359490577,1746060138889,450.0,0.00045892,31]
[359490578,1746060138952,1152.95,0.00045892,31]
[359490579,1746060139081,537.88,0.00045892,31]
[359490580,1746060139123,931.16,0.00045892,31]
[359490581,1746060139159,450.0,0.00045892,31]
[359490582,1746060139188,1152.95,0.00045892,31]
[359490583,1746060139256,537.88,0.00045892,31]
[359490584,1746060139416,450.0,0.00045892,31]
[359490585,1746060139446,931.16,0.00045892,31]
[359490586,1746060139488,1152.95,0.00045892,31]
[359490587,1746060139576,537.88,0.00045892,31]
[359490588,1746060139610,450.0,0.00045892,31]
[359490589,1746060139684,931.16,0.00045892,31]
[359490590,1746060139715,450.0,0.00045892,31]
[359490591,1746060139744,1152.95,0.00045892,31]
[359490592,1746060139780,537.88,0.00045892,31]
[359490593,1746060139810,450.0,0.00045892,31]
[359490594,1746060139900,178.94264842,0.00045892,31]
[359490595,1746060139941,450.0,0.00045892,31]
[359490596,1746060139969,1152.9947392,0.00045892,31]
[359490597,1746060139997,537.88,0.00045892,31]
[359490598,1746060140046,450.0,0.00045892,31]
[359490599,1746060140079,450.0,0.00045892,31]
[359490600,1746060140359,450.0,0.00045892,31]
[359490601,1746060140795,537.88,0.00045892,31]
[359490602,1746060140848,450.0,0.00045892,31]
[359490603,1746060140878,450.0,0.00045892,31]
[359490604,1746060140911,517.36365171,0.00045892,31]
[359490605,1746060140939,450.0,0.00045892,31]
[359490606,1746060140968,537.88,0.00045892,31]
[359490607,1746060140994,450.0,0.00045892,31]
[359490608,1746060141022,450.0,0.00045892,31]
[359490609,1746060141054,450.0,0.00045892,31]
[359490610,1746060141084,537.88,0.00045892,31]
[359490611,1746060141113,450.0,0.00045892,31]
[359490612,1746060141147,450.0,0.00045892,31]
[359490613,1746060141177,450.0,0.00045892,31]
[359490614,1746060141209,537.88,0.00045892,31]
[359490615,1746060141239,450.0,0.00045892,31]
[359490616,1746060141266,450.0,0.00045892,31]
[359490617,1746060141297,450.0,0.00045892,31]
[359490618,1746060141330,450.0,0.00045892,31]
[359490619,1746060141359,931.16,0.00045892,31]
[359490620,1746060141388,450.0,0.00045892,31]
[359490621,1746060141417,537.88,0.00045892,31]
[359490622,1746060141444,450.0,0.00045892,31]
[359490623,1746060141561,450.0,0.00045892,31]
[359490624,1746060141593,931.16,0.00045892,31]
[359490625,1746060141654,537.88,0.00045892,31]
[359490626,1746060141700,450.0,0.00045892,31]
[359490627,1746060141768,450.0,0.00045892,31]
[359490628,1746060141797,450.0,0.00045892,31]
[359490629,1746060141825,450.0,0.00045892,31]
[359490630,1746060141856,931.16,0.00045892,31]
[359490631,1746060141886,537.88,0.00045892,31]
[359490632,1746060141916,450.0,0.00045892,31]
[359490633,1746060141944,450.0,0.00045892,31]
[359490634,1746060141972,450.0,0.00045892,31]
[359490635,1746060142000,450.0,0.00045892,31]
[359490636,1746060142029,164.00546495,0.00045892,31]
[359490637,1746060142062,931.16,0.00045892,31]
[359490638,1746060142093,537.88,0.00045892,31]
[359490639,1746060142127,450.0,0.00045892,31]
[359490640,1746060142158,450.0,0.00045892,31]
[359490641,1746060142369,229.25606509,0.00045892,31]
[359490642,1746060142397,450.0,0.00045892,31]
[359490643,1746060142425,931.16,0.00045892,31]
[359490644,1746060142454,537.88,0.00045892,31]
[359490645,1746060142490,450.0,0.00045892,31]
[359490646,1746060142520,450.0,0.00045892,31]
[359490647,1746060142562,450.0,0.00045892,31]
[359490648,1746060142591,931.16,0.00045892,31]
[359490649,1746060142620,537.88,0.00045892,31]
[359490650,1746060142680,450.0,0.00045892,31]
[359490651,1746060142714,450.0,0.00045892,31]
[359490652,1746060142743,450.0,0.00045892,31]
[359490653,1746060142777,450.0,0.00045892,31]
[359490654,1746060142804,931.16,0.00045892,31]
[359490655,1746060142833,537.88,0.00045892,31]
[359490656,1746060142863,450.0,0.00045892,31]
[359490657,1746060142892,450.0,0.00045892,31]
[359490658,1746060142920,450.0,0.00045892,31]
[359490659,1746060142958,931.16,0.00045892,31]
[359490660,1746060142987,450.0,0.00045892,31]
[359490661,1746060143019,538.01273009,0.00045892,31]
[359490662,1746060143046,450.0,0.00045892,31]